Cogmind - Beta 14 @@@ ROGUE MODE // 2024.11.26 @ 13:33:58 Player: MarKhan Result: Destroyed by S-10 Pest with Light Assault Rifle Performance ------------- Evolutions (1) 500 Regions Visited (2) 400 Robots Destroyed (1) 5 Value Destroyed (1) 1 Prototype IDs (0) 0 Alien Tech Used (0) 0 Bonus (0) 0 TOTAL SCORE: 906 Bonus ------- None Cogmind --------- Core Integrity 0/400 Matter 134/300 Energy 98/100 System Corruption 0% Temperature Cool (0) Movement Core (50) Location -9/Materials Parts ------- > --- POWER (3) -------- (None) > --- PROPULSION (2) --- (None) > --- UTILITY (2) ------ (None) > --- WEAPON (2) ------- (None) > --- INVENTORY (5) ---- (None) Peak State ------------ None Favorites ----------- Power None Propulsion None Utility None Weapon None Build | -11 -10 -9 ------- Run | Yrd Mat Mat Slots Evolved 2 | . . 2 Power 2 | . . 2 Propulsion . | . . . Utility . | . . . Weapon . | . . . Parts Attached . | . . . Power . | . . . Engine . | . . . Core . | . . . Reactor . | . . . Propulsion . | . . . Treads . | . . . Leg . | . . . Wheel . | . . . Hover . | . . . Flight . | . . . Utility . | . . . Device . | . . . Storage . | . . . Processor . | . . . Hackware . | . . . Protection . | . . . Artifact . | . . . Weapon . | . . . Energy Gun . | . . . Energy Cannon . | . . . Ballistic Gun . | . . . Ballistic Cannon . | . . . Launcher . | . . . Special Weapon . | . . . Impact Weapon . | . . . Slashing Weapon . | . . . Piercing Weapon . | . . . Special Melee Weapon . | . . . Unidentified Prototypes . | . . . Parts Lost . | . . . Power . | . . . Propulsion . | . . . Utility . | . . . Weapon . | . . . Highest Loss Streak . | . . . To Critical Strikes . | . . . Average Slot Usage (%) . | . . . Peak Build Rating . | . . . Average Rating . | . . . On Entrance . | . . . Naked Turns 115 | . 47 68 Heaviest Build . | . . . Greatest Support 3 | 3 3 3 Greatest Overweight (x) . | . . . Average Overweight (x) . | . . . Largest Inventory Capacity 5 | 5 5 5 Average Capacity 5 | 5 5 5 Most Carried . | . . . Average Carried . | . . . Final Capacity 5 | 5 5 5 Final Carried . | . . . Class Distribution -------------------- 100% | Mutant Dominant Class ---------------- Mutant | -10/Materials Mutant | -9/Materials Resources | -11 -10 -9 ----------- Run | Yrd Mat Mat Matter Collected 21 | . 21 . Remotely . | . . . Salvage Created 21 | . 21 . Parts 3 | . 3 . Haulers Intercepted . | . . . Recyclers Shooed 1 | . 1 . Parts Field Recycled . | . . . Retrieved Matter . | . . . Parts Self-Destructed . | . . . Prevented . | . . . Kills | -11 -10 -9 ------- Run | Yrd Mat Mat Combat Hostiles Destroyed . | . . . Classes Destroyed 1 | . 1 . Worker 1 | . 1 . Best Kill Streak 1 | . 1 . Combat Bots Only . | . . . Max Kills in Single Turn 1 | . 1 . Gunslinging . | . . . Exploded . | . . . Melee . | . . . Uniques/NPCs Destroyed . | . . . Combat | -11 -10 -9 -------- Run | Yrd Mat Mat Hostile Shots Fired 78 | . 4 74 Missed 37 | . 2 35 Damage Taken 435 | . 34 401 Core 435 | . 34 401 Absorbed by Shields . | . . . Core Remaining (%) 93 | 100 86 . Volleys Fired . | . . . Largest . | . . . Hottest . | . . . Shots Fired . | . . . Gun . | . . . Cannon . | . . . Launcher . | . . . Special . | . . . Kinetic . | . . . Thermal . | . . . Explosive . | . . . Electromagnetic . | . . . Robot Hit Streak . | . . . Robot Miss Streak . | . . . Penetration Max . | . . . Secondary Targets . | . . . Shots Hit Robots . | . . . Core Hits 2 | . 2 . Critical Kills . | . . . Critical Parts Destroyed . | . . . Critical Strikes . | . . . Melee Attacks . | . . . Impact . | . . . Slashing . | . . . Piercing . | . . . Sneak Attacks . | . . . Combat Hostiles . | . . . Follow-up Attacks . | . . . Damage Inflicted 18 | . 16 2 Guns . | . . . Cannons . | . . . Explosions . | . . . Melee . | . . . Ramming 18 | . 16 2 Kinetic . | . . . Thermal . | . . . Explosive . | . . . Electromagnetic . | . . . Impact . | . . . Slashing . | . . . Piercing . | . . . Highest Corruption 2 | . 2 . Average Corruption 2 | . 2 . Corruption Purged . | . . . Corruption Blocked . | . . . Overload Shots . | . . . Overflow Damage . | . . . Projectiles . | . . . Explosions . | . . . Melee . | . . . Knockbacks . | . . . Impact . | . . . Kinetic . | . . . Secondary . | . . . Self-Inflicted Damage 8 | . 7 1 Shots . | . . . Rammed 5 | . 3 2 Targets Rammed 5 | . 3 2 Kicked . | . . . Crushed . | . . . Highest Temperature . | . . . Average Temperature . | . . . Received Heat Transfer 105 | . 12 93 Siege Activations . | . . . Robots Corrupted . | . . . Combat Hostiles . | . . . Parts Fried . | . . . Impact Corruptions . | . . . Robots Melted . | . . . Combat Hostiles . | . . . Parts Melted . | . . . Heat Transferred . | . . . Parts Sabotaged . | . . . Parts Stolen . | . . . Parts Stripped . | . . . Power Chain Reactions . | . . . Alert | -11 -10 -9 ------- Run | Yrd Mat Mat Peak Influence 93 | . 28 93 Initial 11 | . . 11 Average 30 | . 11 47 Maximum Alert Level . | . . . Low Security (%) 100 | 100 100 100 Level 1 . | . . . Level 2 . | . . . Level 3 . | . . . Level 4 . | . . . Level 5 . | . . . High Security . | . . . Max Security . | . . . Squads Dispatched 3 | . 3 . Investigation 2 | . 2 . Extermination . | . . . Reinforcement 1 | . 1 . Assault . | . . . Garrison . | . . . Intercept . | . . . Searches Triggered . | . . . Construction Impeded . | . . . Haulers Reinforced . | . . . Active Scanning Responses . | . . . Cargo Convoy Interrupts . | . . . Stealth | -11 -10 -9 --------- Run | Yrd Mat Mat Distress Signals . | . . . Communications Jammed . | . . . Distress Signals . | . . . Times Spotted 18 | . 7 11 Peak Tracking Total 10 | . 7 10 Tactical Retreats 1 | . . 1 Traps | -11 -10 -9 ------- Run | Yrd Mat Mat Traps Triggered . | . . . Indirectly . | . . . Trap Hack Attempts . | . . . Triggered . | . . . Disarmed . | . . . Reprogrammed . | . . . Reused . | . . . Traps Extracted . | . . . Installed . | . . . Triggered . | . . . Objects Rigged 2 | . . 2 Machines | -11 -10 -9 ---------- Run | Yrd Mat Mat Machines Disabled . | . . . Max in Single Turn . | . . . Machines Repaired . | . . . Machines Dismantled . | . . . Machines Sabotaged . | . . . Overloaded Fab Kills . | . . . Hacking | -11 -10 -9 --------- Run | Yrd Mat Mat Machines Accessed 5 | . 3 2 Terminals 5 | . 3 2 Fabricators . | . . . Repair Stations . | . . . Recycling Units . | . . . Scanalyzers . | . . . Garrison Access . | . . . Total Hacks 23 | . 14 9 Successful 9 | . 4 5 Failed 14 | . 10 4 Catastrophic 2 | . 2 . Database Lockouts . | . . . Manual 20 | . 12 8 Terminals 23 | . 14 9 Fabricators . | . . . Repair Stations . | . . . Recycling Units . | . . . Scanalyzers . | . . . Garrison Access . | . . . Terminal Hacks 3 | . 2 1 Locate Traps 1 | . 1 . Zone Layout 2 | . 1 1 Fabricator Hacks . | . . . Repair Station Hacks . | . . . Recycling Unit Hacks . | . . . Scanalyzer . | . . . Garrison Access Hacks . | . . . Unauthorized Hacks 6 | . 2 4 Terminals 6 | . 2 4 Botnet 3 | . 1 2 Detonate 1 | . . 1 Skim 2 | . 1 1 Fabricators . | . . . Repair Stations . | . . . Recycling Units . | . . . Scanalyzers . | . . . Garrison Access . | . . . Data Cores Recovered . | . . . Used . | . . . Hacking Detections 5 | . 3 2 Full Trace Events 2 | . 2 . Feedback Events . | . . . Feedback Blocked . | . . . Robot Schematics Acquired . | . . . Robots Built . | . . . Authchips . | . . . Time . | . . . Total Robot Build Rating . | . . . Part Schematics Acquired . | . . . Parts Built . | . . . Authchips . | . . . Time . | . . . Total Part Build Rating . | . . . Parts Repaired . | . . . Time . | . . . Parts Recycled . | . . . Recycled Matter . | . . . Retrieved Matter . | . . . Retrieved Components . | . . . Parts Scanalyzed . | . . . Part Schematics Acquired . | . . . Parts Damaged . | . . . Bothacking | -11 -10 -9 ------------ Run | Yrd Mat Mat Used RIF Installer . | . . . Robots Hacked . | . . . Non-combat . | . . . Combat . | . . . Robot Hacks Applied . | . . . Relay Couplers Released . | . . . Fabnet Peak Effective % . | . . . Robots Rewired . | . . . Allies Hacked . | . . . Hacks Repelled . | . . . Allies | -11 -10 -9 -------- Run | Yrd Mat Mat Total Allies . | . . . Largest Group . | . . . Highest-Rated Group . | . . . Highest-Rated Ally . | . . . Total Orders . | . . . Ally Attacks . | . . . Total Damage . | . . . Kills . | . . . Allies Corrupted . | . . . Allies Melted . | . . . Intel | -11 -10 -9 ------- Run | Yrd Mat Mat Robot Analysis Total . | . . . Derelict Logs Recovered . | . . . Drone Launches . | . . . Drone Recoveries . | . . . Exploration | -11 -10 -9 ------------- Run | Yrd Mat Mat Turns Passed 124 | 9 47 68 Spaces Moved 239 | 19 88 132 Core 239 | 19 88 132 Treads . | . . . Legs . | . . . Wheels . | . . . Hover . | . . . Flight . | . . . Fastest Speed 50 | 50 50 50 Average Speed 50 | 50 50 50 Slowest Speed 50 | 50 50 50 Overloaded Moves . | . . . Propulsion Burnouts . | . . . Robots Hopped . | . . . Cave-ins Triggered . | . . . Exploration Rate (%) 15 | 3 24 20 Regions Visited 2 Branch Regions . Pre-discovered Areas . | . . . Known Exits Taken . | . . . Unknown Exits Taken 2 | 1 1 . Scrap Searched . | . . . Spaces Dug . | . . . Terrain Destroyed . | . . . Melee . | . . . Projectile . | . . . AOE . | . . . Terrain Rammed . | . . . Walls Destroyed . | . . . Machines Disabled . | . . . Actions | -11 -10 -9 --------- Run | Yrd Mat Mat Total 242 | 18 90 134 Wait . | . . . Move 237 | 18 87 132 Hop . | . . . Pick Up . | . . . Fast Attach . | . . . Attach . | . . . Detach . | . . . Swap . | . . . Drop . | . . . Fire . | . . . Melee . | . . . Ram 5 | . 3 2 Kick . | . . . Crush . | . . . Escape Stasis . | . . . Rewire . | . . . Trap . | . . . Miscellaneous . | . . . Route ------- -11/Scrapyard -10/Materials -9/Materials (discovered 2 exits: [*Min x2]) History --------- Turn | Location | Event 3 | -11/Scrapyard | Discovered new exit (range 15) 10 | -11/Scrapyard | Entered Materials 50 | -10/Materials | Discovered new exit (range 16) 57 | -10/Materials | Entered another Materials area 57 | -9/Materials | Evolved 2 slots: Power x2 103 | -9/Materials | Core integrity fell below 50% 115 | -9/Materials | Core integrity fell below 20% 120 | -9/Materials | Discovered new exit (range 15) 121 | -9/Materials | Discovered new exit (range 6) 125 | -9/Materials | Destroyed by S-10 Pest with Light Assault Rifle Last Messages --------------- Testing... Scanning machine control network... Found 2 applicable machines. UFBL82EV7X: Nuclear Reactor OM4IE6CY5U: Nuclear Reactor Infected machine control systems. >>Trojan(Skim) Trojan loaded successfully. Testing... Terminal linked with 0 systems. Please expand to 4 more systems! 00080_ Connecting with Terminal... >>Trojan(Botnet) Trojan loaded successfully. Testing... Terminal linked with 1 system. Awaiting botnet instructions. 00104_ Slammed into A-02 Transporter. 00106_ Destabilizing: Core damaged (-16). 00120_ EXIT=FOUND Map ----- +----------------------------------------------------+ | ?????????????????????????????????????????????????? | | ?????????????????????????????????????????????????? | | ?????????????????????????????????????????????????? | | ?????????????????????????????????????????????????? | | ?????????????????????????????????????????????????? | | ?????????????????????????????????????????????????? | | ?????????????????????????????????????????????????? | | ?????????????????????????????????????????????????? | | ?????????????????????????????????????????????????? | | ?????????????????????????????????????????????????? | | ?????????????????????????????????????????????????? | | ?????????????????????????????????????????????????? | | ?????????????????????????????????????????????????? | | ?????????????????????????????????????????????????? | | ?????????????????????????????????????????????????? | | ?????????????????????????????????????????????????? | | ?????????????????????????????????????????????????? | | ?????????????????????????????????????????????????? | | ?????????????????????????????????????????????????? | | ?????????????????????????????????????????????????? | | ?????????????????????????????????????????????????? | | ?????????????????????????????????????????????????? | | ???????########????????????????#####?????????????? | | ??###### ##+############ #?????????????? | | ? #?????????????? | | ? < @ < #?????????????? | | ? u !![ #?????????????? | | ?????+## ## !![ ##### #?????????????? | | ???????# "|"!"??# !! #??????+###?????????????? | | ???????#""|"!???# +???????????????????????? | | ????????###?????# #???????????????????????? | | ????????????????# #???????????????????????? | | ????????????????##u###s #???????????????????????? | | ???????????????? ??# #???????????????????????? | | ??????????????? ??/ss #???????????????????????? | | ??????????????# ""??# #???????????????????????? | | ??????????????# ""??# #???????????????????????? | | ??????????????# ?????# #???????????????????????? | | ??????????????? ?????# #?????#+#???????????????? | | ?????????????????????# #?????# #???????????????? | | ?????????????????????# #?????# #???????????????? | | ????????????????????## ##????# #???????????????? | | ????????????????????# #????# #???????????????? | | ???????????????"""" # ###### #???????????????? | | ???????????????"""" / #???????????????? | | ???????????# # ###### #??????????#????? | | ???????????# # #????# ###?????? #????? | | ?# # ## ##????# #???? |#????? | | ?# """ #######/### #?????# #?? ] #????? | | ?# """ # +?????+ # #????? | +----------------------------------------------------+ Best States ------------- Heat Dissipation 28 Energy Generation 5 Energy Capacity 100 Matter Stores 134 Matter Capacity 300 Sight Range 16 Terrain Scan Density 10 Evasion (%) 50 Item Schematics ----------------- None Robot Schematics ------------------ None Fabricated ------------ Nothing Alien Tech Used ----------------- None Achievements -------------- None Challenges ------------ None Game ------ Seed LayeredHeartSpoofer Manual? 0 Play Time 00:04:06 Cumulative 143.0 hours Start 2024.11.26 @ 13:31:15 End 2024.11.26 @ 13:33:58 Sessions 1 Manual Loads 0 Difficulty Rogue Special Mode None Game No. 131 Rogue 131 Adventurer 0 Explorer 0 Win Type - Total 3 Types 3/0/0/0/0/0/0/0/0 Lore% 54 Gallery% 58 Achievement% 55 Wizard Run 0 Options --------- Layout 1 ASCII 0 Keyboard 1 Movement Arrows Keybinds 0 Fullscreen 0 Font 20/Smallcaps Map View 50x35 Zoom Use 0% Tactical HUD 1 Map Filters NONE Filters NONE Steam 1 RUN: 7aa57044-9a96-47f7-af55-2b56db9b4468